fUST/lending_fUST_20251231
["ID","MTS","AMOUNT","RATE_DAILY","PERIOD"]
[400131163,1767142247806,-598.44213612,0.00021917,2]
[400131164,1767142247816,-213.95949455,0.00021917,2]
[400131165,1767142247825,-417.36752029,0.00021917,2]
[400131166,1767142247835,-441.1912262,0.00021917,2]
[400131167,1767142247844,-591.60116078,0.00021917,2]
[400131168,1767142247853,-216.64018666,0.00021917,2]
[400131169,1767142247863,-500.0,0.00021917,2]
[400131170,1767142247872,-296.24098014,0.00021917,2]
[400131171,1767142247881,-500.0,0.00021917,2]
[400131172,1767142247890,-519.98700163,0.00021917,2]
[400131173,1767142247899,-521.79226528,0.00021917,2]
[400131174,1767142247909,-500.0,0.00021917,2]
[400131175,1767142247918,-448.81665893,0.00021917,2]
[400131176,1767142247927,-473.87727349,0.00021917,2]
[400131177,1767142247937,-331.36752874,0.00021917,2]
[400131178,1767142247946,-313.26838819,0.00021917,2]
[400131179,1767142247955,-431.25014834,0.00021917,2]
[400131180,1767142247965,-499.82329983,0.00021917,2]
[400131181,1767142247975,-489.36109289,0.00021917,2]
[400131182,1767142247985,-241.812254,0.00021917,2]
[400131183,1767142247994,-246.85883541,0.00021917,2]
[400131184,1767142248004,-492.69043668,0.00021917,2]
[400131185,1767142248013,-500.42949407,0.00021917,2]
[400131186,1767142248023,-502.21013442,0.00021917,2]
[400131187,1767142248033,-212.49369694,0.00021917,2]
[400131188,1767142248042,-486.41954782,0.00021917,2]
[400131189,1767142248052,-164.75840004,0.00021917,2]
[400131190,1767142248063,-180.75323926,0.00021917,2]
[400131191,1767142248073,-285.08202354,0.00021917,2]
[400131192,1767142248082,-289.23720001,0.00021917,2]
[400131193,1767142248092,-500.0,0.00021917,2]
[400131194,1767142248102,-592.33106367,0.00021917,2]
[400131195,1767142248112,-409.31799387,0.00021917,2]
[400131196,1767142248122,-193.15983236,0.00021917,2]
[400131197,1767142248131,-461.31122067,0.00021917,2]
[400131198,1767142248140,-202.94786336,0.00021917,2]
[400131199,1767142248150,-500.0,0.00021917,2]
[400131200,1767142248161,-526.06878392,0.00021917,2]
[400131201,1767142248170,-501.33640111,0.00021917,2]
[400131202,1767142248180,-490.39925731,0.00021917,2]
[400131203,1767142248189,-314.24489004,0.00021917,2]
[400131204,1767142248199,-452.29249023,0.00021917,2]
[400131205,1767142248209,-238.25503049,0.00021917,2]
[400131206,1767142248219,-476.28746272,0.00021917,2]
[400131207,1767142248230,-497.56652883,0.00021917,2]
[400131208,1767142248239,-164.65948183,0.00021917,2]
[400131209,1767142248249,-1000.0,0.00021917,2]
[400131210,1767142248258,-271.49305234,0.00021917,2]
[400131211,1767142248268,-502.82394057,0.00021917,2]
[400131212,1767142248277,-161.71508024,0.00021917,2]
[400131213,1767142248286,-264.58772049,0.00021917,2]
[400131214,1767142248296,-312.10792285,0.00021917,2]
[400131215,1767142248305,-504.94852854,0.00021917,2]
[400131216,1767142248314,-476.48352169,0.00021917,2]
[400131217,1767142248323,-350.31194786,0.00021917,2]
[400131218,1767142248332,-190.15443372,0.00021917,2]
[400131219,1767142248341,-409.14025866,0.00021917,2]
[400131220,1767142248351,-500.0,0.00021917,2]
[400131221,1767142248360,-446.47983257,0.00021917,2]
[400131222,1767142248370,-500.0,0.00021917,2]
[400131223,1767142248379,-209.24808648,0.00021917,2]
[400131224,1767142248388,-166.77059855,0.00021917,2]
[400131225,1767142248397,-203.68765285,0.00021917,2]
[400131226,1767142248407,-255.68642444,0.00021917,2]
[400131227,1767142248416,-501.06130346,0.00021917,2]
[400131228,1767142248425,-233.18406558,0.00021917,2]
[400131229,1767142248434,-207.55302901,0.00021917,2]
[400131230,1767142248443,-350.89172555,0.00021917,2]
[400131231,1767142248452,-500.85426906,0.00021917,2]
[400131232,1767142248461,-381.63449651,0.00021917,2]
[400131233,1767142248470,-356.03025943,0.00021917,2]
[400131234,1767142248480,-465.38951167,0.00021917,2]
[400131235,1767142248489,-420.59897434,0.00021917,2]
[400131236,1767142248499,-500.0,0.00021917,2]
[400131237,1767142248508,-270.05297428,0.00021917,2]
[400131238,1767142248518,-367.57,0.00021917,2]
[400131239,1767142248527,-223.46052725,0.00021917,2]
[400131240,1767142248537,-218.40529926,0.00021917,2]
[400131241,1767142248547,-266.15990212,0.00021917,2]
[400131242,1767142248556,-449.52632896,0.00021917,2]
[400131243,1767142248565,-296.77052659,0.00021917,2]
[400131244,1767142248574,-500.0,0.00021917,2]
[400131245,1767142248583,-258.00658869,0.00021917,2]
[400131246,1767142248592,-190.49324555,0.00021917,2]
[400131247,1767142248601,-471.20943293,0.00021917,2]
[400131248,1767142248610,-366.98241924,0.00021917,2]
[400131249,1767142248620,-420.00377493,0.00021917,2]
[400131250,1767142248629,-264.81256574,0.00021917,2]
[400131251,1767142248639,-474.57310077,0.00021917,2]
[400131252,1767142248648,-457.80075992,0.00021917,2]
[400131253,1767142248657,-500.87450242,0.00021917,2]
[400131254,1767142248666,-449.86221356,0.00021917,2]
[400131255,1767142248675,-222.15719484,0.00021917,2]
[400131256,1767142248684,-501.9178721,0.00021917,2]
[400131257,1767142248694,-502.33993876,0.00021917,2]
[400131258,1767142248703,-460.4,0.00021917,2]
[400131259,1767142248712,-501.95207316,0.00021917,2]
[400131260,1767142248721,-284.54001776,0.00021917,2]
[400131261,1767142248730,-443.63446877,0.00021917,2]
[400131262,1767142248739,-443.63652163,0.00021917,2]
[400131263,1767142248748,-490.76843281,0.00021917,2]
[400131264,1767142248757,-186.1588418,0.00021917,2]
[400131265,1767142248767,-313.88086763,0.00021917,2]
[400131266,1767142248776,-500.31919433,0.00021917,2]
[400131267,1767142248785,-321.91286166,0.00021917,2]
[400131268,1767142248794,-239.75984511,0.00021917,2]
[400131269,1767142248803,-502.6980363,0.00021917,2]
[400131270,1767142248812,-322.25574061,0.00021917,2]
[400131271,1767142248821,-467.62343338,0.00021917,2]
[400131272,1767142248831,-472.60378467,0.00021917,2]
[400131273,1767142248841,-274.58472757,0.00021917,2]
[400131274,1767142248850,-338.6906951,0.00021917,2]
[400131275,1767142248860,-297.37714473,0.00021917,2]
[400131276,1767142248869,-427.21938991,0.00021917,2]
[400131277,1767142248879,-331.95861952,0.00021917,2]
[400131278,1767142248889,-188.22075113,0.00021917,2]
[400131279,1767142248898,-500.08288355,0.00021917,2]
[400131280,1767142248908,-490.82856168,0.00021917,2]
[400131281,1767142248917,-340.25687684,0.00021917,2]
[400131282,1767142248927,-278.66468423,0.00021917,2]
[400131283,1767142248936,-214.73939159,0.00021917,2]
[400131284,1767142248945,-221.34309167,0.00021917,2]
[400131285,1767142248956,-490.84153265,0.00021917,2]
[400131286,1767142248965,-520.91238729,0.00021917,2]
[400131287,1767142248975,-423.1302761,0.00021917,2]
[400131288,1767142248984,-387.06567405,0.00021917,2]
[400131289,1767142248993,-500.0,0.00021917,2]
[400131290,1767142249003,-254.12259094,0.00021917,2]
[400131291,1767142249013,-232.74596108,0.00021917,2]
[400131292,1767142249022,-480.85340029,0.00021917,2]
[400131293,1767142249031,-164.08947404,0.00021917,2]
[400131294,1767142249040,-470.17191108,0.00021917,2]
[400131295,1767142249050,-357.75121892,0.00021917,2]
[400131296,1767142249059,-504.70511967,0.00021917,2]
[400131297,1767142249068,-229.40932393,0.00021917,2]
[400131298,1767142249077,-502.45675969,0.00021917,2]
[400131299,1767142249087,-217.61030986,0.00021917,2]
[400131300,1767142249096,-372.65599779,0.00021917,2]
[400131301,1767142249106,-418.05862632,0.00021917,2]
[400131302,1767142249115,-408.62031573,0.00021917,2]
[400131303,1767142249124,-435.03117335,0.00021917,2]
[400131304,1767142249134,-342.42427954,0.00021917,2]
[400131305,1767142249143,-252.77574783,0.00021917,2]
[400131306,1767142249153,-333.92618675,0.00021917,2]
[400131307,1767142249167,-348.50363495,0.00021917,2]
[400131308,1767142249177,-252.67655097,0.00021917,2]
[400131309,1767142249186,-621.60965745,0.00021917,2]
[400131310,1767142249195,-287.73030606,0.00021917,2]
[400131311,1767142249205,-500.0,0.00021917,2]
[400131312,1767142249215,-500.0,0.00021917,2]
[400131313,1767142249224,-993.05,0.00021917,2]
[400131314,1767142249234,-500.16157475,0.00021917,2]
[400131315,1767142249244,-500.0,0.00021917,2]
[400131316,1767142249253,-504.58997569,0.00021917,2]
[400131317,1767142249262,-500.0,0.00021917,2]
[400131318,1767142249271,-348.13867843,0.00021917,2]
[400131319,1767142249280,-500.0,0.00021917,2]
[400131320,1767142249290,-228.93348856,0.00021917,2]
[400131321,1767142249299,-248.26170506,0.00021917,2]
[400131322,1767142249308,-333.92290273,0.00021917,2]
[400131323,1767142249317,-226.89443186,0.00021917,2]
[400131324,1767142249327,-427.12423668,0.00021917,2]
[400131325,1767142249336,-502.04455924,0.00021917,2]
[400131326,1767142249345,-553.39742545,0.00021917,2]
[400131327,1767142249354,-539.26104911,0.00021917,2]
[400131328,1767142249363,-363.68099683,0.00021917,2]
[400131329,1767142249373,-512.66522346,0.00021917,2]
[400131330,1767142249382,-427.7689353,0.00021917,2]
[400131331,1767142249392,-509.16060867,0.00021917,2]
[400131332,1767142249402,-352.39098907,0.00021917,2]
[400131333,1767142249411,-502.29520556,0.00021917,2]
[400131334,1767142249422,-447.97991166,0.00021917,2]
[400131335,1767142249431,-512.34251123,0.00021917,2]
[400131336,1767142249440,-533.10444288,0.00021917,2]
[400131337,1767142249450,-311.40132827,0.00021917,2]
[400131338,1767142249459,-507.05180172,0.00021917,2]
[400131339,1767142249468,-269.915319,0.00021917,2]
[400131340,1767142249477,-370.28388052,0.00021917,2]
[400131341,1767142249486,-528.21056679,0.00021917,2]
[400131342,1767142249496,-591.65441113,0.00021917,2]
[400131343,1767142249505,-638.97867053,0.00021917,2]
[400131344,1767142249515,-403.96121089,0.00021917,2]
[400131345,1767142249524,-192.71983482,0.00021917,2]
[400131346,1767142249533,-500.0,0.00021917,2]
[400131347,1767142249543,-520.96277231,0.00021917,2]
[400131348,1767142249551,-514.79568651,0.00021917,2]
[400131349,1767142249561,-422.94798478,0.00021917,2]
[400131350,1767142249570,-507.99851295,0.00021917,2]
[400131351,1767142249579,-571.21392777,0.00021917,2]
[400131352,1767142249588,-509.18604531,0.00021917,2]
[400131353,1767142249599,-547.50276936,0.00021917,2]
[400131354,1767142249711,-509.70359709,0.00021917,2]
[400131355,1767142249721,-500.0,0.00021917,2]
[400131356,1767142249731,-316.16014628,0.00021917,2]
[400131357,1767142249741,-550.90127323,0.00021917,2]
[400131358,1767142249750,-218.777766,0.00021917,2]
[400131359,1767142249759,-426.20730668,0.00021917,2]
[400131360,1767142249768,-359.95549187,0.00021917,2]
[400131361,1767142249778,-486.74530578,0.00021917,2]
[400131362,1767142249788,-501.22712139,0.00021917,2]
[400131363,1767142249797,-223.21748018,0.00021917,2]
[400131364,1767142249807,-500.0,0.00021917,2]
[400131365,1767142249816,-367.5163094,0.00021917,2]
[400131366,1767142249825,-486.84467399,0.00021917,2]
[400131367,1767142249835,-488.40239306,0.00021917,2]
[400131368,1767142249844,-380.57291504,0.00021917,2]
[400131369,1767142249853,-206.65781947,0.00021917,2]
[400131370,1767142249863,-488.95703903,0.00021917,2]
[400131371,1767142249872,-500.0,0.00021917,2]
[400131372,1767142249882,-468.20528792,0.00021917,2]
[400131373,1767142249892,-500.35952636,0.00021917,2]
[400131374,1767142249901,-331.31461136,0.00021917,2]
[400131375,1767142249912,-244.9309608,0.00021917,2]
[400131376,1767142249922,-269.33315418,0.00021917,2]
[400131377,1767142249931,-481.30405838,0.00021917,2]
[400131378,1767142249941,-468.46876956,0.00021917,2]
[400131379,1767142249951,-180.69490441,0.00021917,2]
[400131380,1767142249961,-1000.1468578,0.00021917,2]
[400131381,1767142249970,-534.80878098,0.00021917,2]
[400131382,1767142249981,-507.39394315,0.00021917,2]
[400131383,1767142249991,-226.51399345,0.00021917,2]
[400131384,1767142250001,-500.0,0.00021917,2]
[400131385,1767142250011,-234.09703627,0.00021917,2]
[400131386,1767142250021,-415.78305326,0.00021917,2]
[400131387,1767142250031,-433.93542274,0.00021917,2]
[400131388,1767142250041,-602.50773801,0.00021917,2]
[400131389,1767142250051,-496.84809073,0.00021917,2]
[400131390,1767142250060,-464.92212663,0.00021917,2]
[400131391,1767142250069,-427.11920997,0.00021917,2]
[400131392,1767142250079,-433.42504771,0.00021917,2]
[400131393,1767142250088,-519.17552996,0.00021917,2]
[400131394,1767142250098,-231.29106344,0.00021917,2]
[400131395,1767142250107,-276.79786927,0.00021917,2]
[400131396,1767142250116,-509.52473583,0.00021917,2]
[400131397,1767142250126,-491.35885865,0.00021917,2]
[400131398,1767142250136,-230.65898868,0.00021917,2]
[400131399,1767142250145,-393.17886351,0.00021917,2]
[400131400,1767142250155,-464.56381766,0.00021917,2]
[400131401,1767142250164,-573.23461641,0.00021917,2]
[400131402,1767142250174,-458.50221432,0.00021917,2]
[400131403,1767142250184,-210.76009802,0.00021917,2]
[400131404,1767142250194,-254.64616056,0.00021917,2]
[400131405,1767142250204,-319.94055293,0.00021917,2]
[400131406,1767142250213,-352.12809256,0.00021917,2]
[400131407,1767142250223,-170.27376167,0.00021917,2]
[400131408,1767142250232,-495.99114627,0.00021917,2]
[400131409,1767142250242,-479.81812409,0.00021917,2]
[400131410,1767142250251,-288.94230664,0.00021917,2]
[400131411,1767142250261,-214.62430021,0.00021917,2]
[400131412,1767142250271,-413.36013582,0.00021917,2]
[400131413,1767142250281,-408.46147524,0.00021917,2]
[400131414,1767142250290,-194.53004279,0.00021917,2]
[400131415,1767142250300,-500.71951521,0.00021917,2]
[400131416,1767142250309,-295.22030358,0.00021917,2]
[400131417,1767142250318,-285.81164378,0.00021917,2]
[400131418,1767142250327,-182.95883851,0.00021917,2]
[400131419,1767142250337,-285.47899851,0.00021917,2]
[400131420,1767142250346,-452.76867007,0.00021917,2]
[400131421,1767142250355,-501.2051815,0.00021917,2]
[400131422,1767142250365,-193.5526784,0.00021917,2]
[400131423,1767142250374,-176.45954335,0.00021917,2]
[400131424,1767142250383,-287.08953983,0.00021917,2]
[400131425,1767142250392,-198.30678278,0.00021917,2]
[400131426,1767142250402,-251.46424513,0.00021917,2]
[400131427,1767142250411,-191.99719017,0.00021917,2]
[400131428,1767142250421,-276.59515798,0.00021917,2]
[400131429,1767142250431,-229.72161579,0.00021917,2]
[400131430,1767142250440,-529.43122651,0.00021917,2]
[400131431,1767142250450,-233.95773104,0.00021917,2]
[400131432,1767142250459,-290.29849253,0.00021917,2]
[400131433,1767142250468,-510.83887357,0.00021917,2]
[400131434,1767142250478,-500.0,0.00021917,2]
[400131435,1767142250487,-251.40795676,0.00021917,2]
[400131436,1767142250497,-251.7142983,0.00021917,2]
[400131437,1767142250507,-273.21298075,0.00021917,2]
[400131438,1767142250516,-232.50445623,0.00021917,2]
[400131439,1767142250526,-598.60330821,0.00021917,2]
[400131440,1767142250534,-500.0,0.00021917,2]
[400131441,1767142250543,-285.79899295,0.00021917,2]
[400131442,1767142250553,-343.1745665,0.00021917,2]
[400131443,1767142250563,-265.15378107,0.00021917,2]
[400131444,1767142250573,-547.30025947,0.00021917,2]
[400131445,1767142250583,-385.91074519,0.00021917,2]
[400131446,1767142250592,-461.88902203,0.00021917,2]
[400131447,1767142250603,-500.0,0.00021917,2]
[400131448,1767142250612,-400.76687336,0.00021917,2]
[400131449,1767142250622,-500.0,0.00021917,2]
[400131450,1767142250631,-267.3602502,0.00021917,2]
[400131451,1767142250641,-449.59900032,0.00021917,2]
[400131452,1767142250651,-462.69119327,0.00021917,2]
[400131453,1767142250661,-412.67053547,0.00021917,2]
[400131454,1767142250670,-286.70770784,0.00021917,2]
[400131455,1767142250680,-605.93,0.00021917,2]
[400131456,1767142250689,-201.20744653,0.00021917,2]
[400131457,1767142250699,-266.37885615,0.00021917,2]
[400131458,1767142250708,-384.41444147,0.00021917,2]
[400131459,1767142250717,-440.86023557,0.00021917,2]
[400131460,1767142250726,-211.4031778,0.00021917,2]
[400131461,1767142250735,-315.74237015,0.00021917,2]
[400131462,1767142250745,-417.46274433,0.00021917,2]
[400131463,1767142250754,-551.7987641,0.00021917,2]
[400131464,1767142250763,-486.97399568,0.00021917,2]
[400131465,1767142250773,-500.0,0.00021917,2]
[400131466,1767142250783,-500.0,0.00021917,2]
[400131467,1767142250792,-308.41590209,0.00021917,2]
[400131468,1767142250801,-500.0,0.00021917,2]
[400131469,1767142250811,-586.89,0.00021917,2]
[400131470,1767142250820,-377.57132978,0.00021917,2]
[400131471,1767142250830,-443.55124021,0.00021917,2]
[400131472,1767142250840,-173.90124415,0.00021917,2]
[400131473,1767142250849,-500.0,0.00021917,2]
[400131474,1767142250859,-595.43792978,0.00021917,2]
[400131475,1767142250868,-464.76334376,0.00021917,2]
[400131476,1767142250877,-500.0,0.00021917,2]
[400131477,1767142250888,-581.99012535,0.00021917,2]
[400131478,1767142250898,-226.46143208,0.00021917,2]
[400131479,1767142250907,-500.0,0.00021917,2]
[400131480,1767142250916,-485.490684,0.00021917,2]
[400131481,1767142250926,-485.490684,0.00021917,2]
[400131482,1767142250935,-485.490684,0.00021917,2]
[400131483,1767142250944,-485.490684,0.00021917,2]
[400131484,1767142250954,-373.31877062,0.00021917,2]
[400131485,1767142250964,-226.98660314,0.00021917,2]
[400131486,1767142250974,-500.0,0.00021917,2]
[400131487,1767142250984,-327.07577076,0.00021917,2]
[400131488,1767142250994,-543.20448171,0.00021917,2]
[400131489,1767142251003,-500.0,0.00021917,2]
[400131490,1767142251013,-151.0,0.00021917,2]
[400131491,1767142251023,-4192.77,0.00021917,2]
[400131492,1767142251033,-151.0,0.00021917,2]
[400131493,1767142251043,-502.4814892,0.00021917,2]
[400131494,1767142251053,-150.0,0.00021918,2]
[400131495,1767142251063,-235.53,0.00022,2]
[400131496,1767142251072,-207.61,0.00022,7]
[400131497,1767142251081,-2505.96510854,0.00022047,2]
[400131498,1767142251091,-160.0,0.00022167,5]
[400131499,1767142251100,-507.48530578,0.00022191,2]
[400131500,1767142251110,-500.0,0.00022191,2]
[400131501,1767142251119,-238.75201371,0.00022191,2]
[400131502,1767142251128,-198.66850408,0.00022191,2]
[400131503,1767142251138,-500.0,0.00022191,2]
[400131504,1767142251147,-500.0,0.00022191,2]
[400131505,1767142251157,-1000.0,0.00022191,2]
[400131506,1767142251171,-388.23781073,0.00022191,2]
[400131507,1767142251181,-500.0,0.00022191,2]
[400131508,1767142251191,-500.0,0.00022191,2]
[400131509,1767142251201,-993.05,0.00022191,2]
[400131510,1767142251211,-523.45254658,0.00022191,2]
[400131511,1767142251221,-497.71228405,0.00022191,2]
[400131512,1767142251231,-217.220488,0.00022191,2]
[400131513,1767142251240,-217.220488,0.00022191,2]
[400131514,1767142251249,-217.220488,0.00022191,2]
[400131515,1767142251258,-217.220488,0.00022191,2]
[400131516,1767142251267,-500.0,0.00022191,2]
[400131517,1767142251276,-500.0,0.00022191,2]
[400131518,1767142251285,-414.94390591,0.00022191,2]
[400131519,1767142251295,-500.0,0.00022191,2]
[400131520,1767142251304,-200.40401091,0.00022191,2]
[400131521,1767142251314,-4192.77,0.00022191,2]
[400131522,1767142251324,-700.0,0.00022195,2]
[400131523,1767142251333,-206.15825334,0.00022352,12]
[400131524,1767142251343,-2258.0,0.0002239,2]
[400131525,1767142251352,-285.91,0.00022449,30]
[400131526,1767142251361,-500.0,0.00022465,2]
[400131527,1767142251372,-500.0,0.00022465,2]
[400131528,1767142251382,-228.384424,0.00022465,2]
[400131529,1767142251392,-993.05,0.00022465,2]
[400131530,1767142251402,-500.0,0.00022465,2]
[400131531,1767142251411,-500.0,0.00022465,2]
[400131532,1767142251421,-500.0,0.00022465,2]
[400131533,1767142251431,-4192.77,0.00022465,2]
[400131534,1767142251440,-160.0,0.00022466,6]
[400131535,1767142251450,-300.0,0.00022466,2]
[400131536,1767142251460,-8791.8759073,0.00022492,2]
[400131537,1767142251469,-2000.0,0.000225,7]
[400131538,1767142251479,-160.0,0.00022566,2]
[400131539,1767142251488,-1041.66666667,0.00022566,2]
[400131540,1767142251497,-500.0,0.00022739,2]
[400131541,1767142251506,-993.05,0.00022739,2]
[400131542,1767142251516,-500.0,0.00022739,2]
[400131543,1767142251525,-324.0813559,0.00022739,2]
[400131544,1767142251535,-500.0,0.00022739,2]
[400131545,1767142251544,-4192.77,0.00022739,2]
[400131546,1767142251554,-160.0,0.00022764,7]
[400131547,1767142251563,-6325.0,0.00022782,2]
[400131548,1767142251572,-459.61461908,0.00022834,2]
[400131549,1767142251582,-2451.59346901,0.00022938,2]
[400131550,1767142251591,-700.0,0.00022967,2]
[400131551,1767142251600,-222.9,0.00022985,2]
[400131552,1767142251610,-700.0,0.00022994,2]
[400131553,1767142251620,-1041.66666667,0.00023,3]
[400131554,1767142251630,-153.0,0.00023,4]
[400131555,1767142251639,-500.0,0.00023013,2]
[400131556,1767142251648,-993.05,0.00023013,2]
[400131557,1767142251657,-151.0,0.00023013,2]
[400131558,1767142251666,-151.0,0.00023013,2]
[400131559,1767142251676,-500.0,0.00023013,2]
[400131560,1767142251685,-500.0,0.00023013,2]
[400131561,1767142251695,-4192.77,0.00023013,2]
[400131562,1767142251706,-450.0,0.00023014,2]
[400131563,1767142251715,-160.0,0.00023062,8]
[400131564,1767142251725,-2451.59346901,0.00023128,2]
[400131565,1767142251735,-700.0,0.00023156,2]
[400131566,1767142251744,-500.0,0.00023287,2]
[400131567,1767142251753,-993.05,0.00023287,2]
[400131568,1767142251763,-500.0,0.00023287,2]
[400131569,1767142251772,-288.95766043,0.00023287,2]
[400131570,1767142251782,-4192.77,0.00023287,2]
[400131571,1767142251791,-164.88,0.000233,7]
[400131572,1767142251801,-700.0,0.00023302,2]
[400131573,1767142251811,-160.0,0.0002336,9]
[400131574,1767142251821,-700.0,0.00023423,2]
[400131575,1767142251830,-381.22,0.00023425,30]
[400131576,1767142251839,-11608.45,0.000235,2]
[400131577,1767142251848,-2451.59346901,0.00023547,2]
[400131578,1767142251858,-151.0,0.00023549,2]
[400131579,1767142251867,-151.0,0.00023549,2]
[400131580,1767142251877,-206.15825334,0.00023556,13]
[400131581,1767142251886,-993.05,0.00023561,2]
[400131582,1767142251895,-500.0,0.00023561,2]
[400131583,1767142251905,-4192.77,0.00023561,2]
[400131584,1767142251914,-425.05756062,0.00023562,2]
[400131585,1767142251924,-235.53,0.000236,2]
[400131586,1767142251934,-153.0,0.000236,5]
[400131587,1767142251944,-2451.59346901,0.00023621,2]
[400131588,1767142251954,-160.0,0.00023658,10]
[400131589,1767142251964,-207.61,0.000237,7]
[400131590,1767142251974,-700.0,0.00023726,2]
[400131591,1767142251991,-200.0,0.00023835,2]
[400131592,1767142252004,-993.05,0.00023835,2]
[400131593,1767142252013,-406.3,0.00023835,2]
[400131594,1767142252023,-4192.77,0.00023835,2]
[400131595,1767142252032,-469.8761209,0.000239,2]
[400131596,1767142252042,-469.87612087,0.000239,2]
[400131597,1767142252051,-469.87612087,0.000239,2]
[400131598,1767142252060,-469.87612087,0.000239,2]
[400131599,1767142252070,-469.87612087,0.000239,2]
[400131600,1767142252079,-469.87612087,0.000239,2]
[400131601,1767142252089,-469.87612087,0.000239,2]
[400131602,1767142252098,-469.87612087,0.000239,2]
[400131603,1767142252107,-469.87612087,0.000239,2]
[400131604,1767142252117,-469.87612087,0.000239,2]
[400131605,1767142252127,-160.0,0.00023956,11]
[400131606,1767142252136,-1000.0,0.00023982,10]
[400131607,1767142252146,-791.0,0.00023982,10]
[400131608,1767142252155,-1053.31,0.00024,14]
[400131609,1767142252165,-2451.59346901,0.00024023,2]
[400131610,1767142252175,-993.05,0.00024109,2]
[400131611,1767142252184,-4192.77,0.00024109,2]
[400131612,1767142252298,-204.23238205,0.00024164,2]
[400131613,1767142252309,-160.0,0.00024255,12]
[400131614,1767142252319,-332.0,0.00024267,2]
[400131615,1767142252330,-204.03039397,0.00024342,2]
[400131616,1767142252339,-407.8530883,0.00024342,2]
[400131617,1767142252349,-2451.59346901,0.0002436,2]
[400131618,1767142252359,-993.05,0.00024383,2]
[400131619,1767142252368,-498.95073,0.00024383,2]
[400131620,1767142252378,-498.95073,0.00024383,2]
[400131621,1767142252388,-498.95073,0.00024383,2]
[400131622,1767142252397,-498.95073,0.00024383,2]
[400131623,1767142252407,-4192.77,0.00024383,2]
[400131624,1767142252417,-222.9,0.00024387,2]
[400131625,1767142252428,-2451.59346905,0.00024396,2]
[400131626,1767142252438,-476.52,0.00024401,30]
[400131627,1767142252448,-160.0,0.00024553,13]
[400131628,1767142252458,-3162.0,0.00024558,2]
[400131629,1767142252468,-205.86501856,0.00024586,2]
[400131630,1767142252478,-538.16108523,0.00024633,2]
[400131631,1767142252488,-800.0,0.00024652,2]
[400131632,1767142252498,-993.05,0.00024657,2]
[400131633,1767142252507,-4192.77,0.00024657,2]
[400131634,1767142252517,-380.0,0.00024658,2]
[400131635,1767142252527,-700.0,0.00024665,2]
[400131636,1767142252536,-23617.3,0.000247,3]
[400131637,1767142252546,-206.15825334,0.00024759,15]
[400131638,1767142252556,-800.0,0.00024767,2]
[400131639,1767142252566,-800.0,0.0002478,2]
[400131640,1767142252576,-160.46,0.000248,7]
[400131641,1767142252585,-235.53,0.000248,2]
[400131642,1767142252595,-164.88,0.000248,7]
[400131643,1767142252605,-151.0,0.000248,7]
[400131644,1767142252615,-217.220488,0.000248,7]
[400131645,1767142252625,-235.0,0.000248,7]
[400131646,1767142252635,-217.220488,0.000248,7]
[400131647,1767142252644,-217.220488,0.000248,7]
[400131648,1767142252654,-217.220488,0.000248,7]
[400131649,1767142252663,-503.15705668,0.00024834,2]
[400131650,1767142252674,-160.0,0.00024851,14]
[400131651,1767142252684,-210.88540318,0.00024851,5]
[400131652,1767142252694,-62988.7975927,0.00024863,2]
[400131653,1767142252704,-35132.2701045,0.00024863,2]
[400131654,1767142252714,-366.8648694,0.00024863,2]
[400131655,1767142252723,-498.95073,0.00024863,7]
[400131656,1767142252733,-498.95073,0.00024863,7]
[400131657,1767142252743,-498.95073,0.00024863,7]
[400131658,1767142252752,-498.95073,0.00024863,7]
[400131659,1767142252762,-151.0,0.00024867,2]
[400131660,1767142252771,-151.0,0.00024867,2]
[400131661,1767142252781,-250.0,0.00024867,2]
[400131662,1767142252791,-151.0,0.00024867,2]